[Event "Titled Tuesday Blitz February 28 Early 2023"]
[White "Domingo Nunez, Ruben"]
[Black "Balint, Vilmos"]
[WhiteFideId "22245570"]
[BlackFideId "718050"]
[WhiteElo "2404"]
[BlackElo "2034"]
[Result "1-0"]
[Round "04"]
[TimeControl "180+2"]
[Date "2023.02.28"]
[WhiteClock "0:00:12"]
[BlackClock "0:00:26"]

1. e4 {[%clk 0:02:51]}  e6 {[%clk 0:01:22]} 2. Nf3 {[%clk 0:02:46]}  d5 {[%clk 0:01:23]} 3. Nc3 {[%clk 0:02:46]}  Nf6 {[%clk 0:01:22]} 4. e5 {[%clk 0:02:47]}  Nfd7 {[%clk 0:01:22]} 5. d4 {[%clk 0:02:47]}  c5 {[%clk 0:01:23]} 6. dxc5 {[%clk 0:02:48]}  Bxc5 {[%clk 0:01:22]} 7. Bf4 {[%clk 0:02:48]}  Nc6 {[%clk 0:01:23]} 8. Bd3 {[%clk 0:02:49]}  h6 {[%clk 0:01:23]} 9. h4 {[%clk 0:02:49]}  Qe7 {[%clk 0:01:23]} 10. a3 {[%clk 0:02:48]}  a6 {[%clk 0:01:23]} 11. h5 {[%clk 0:02:48]}  b5 {[%clk 0:01:23]} 12. Rh3 {[%clk 0:02:48]}  Bb7 {[%clk 0:01:24]} 13. Rg3 {[%clk 0:02:48]}  Rg8 {[%clk 0:01:24]} 14. Qe2 {[%clk 0:02:42]}  O-O-O {[%clk 0:01:24]} 15. a4 {[%clk 0:02:41]}  b4 {[%clk 0:01:23]} 16. Nb1 {[%clk 0:02:39]}  Nd4 {[%clk 0:01:22]} 17. Nxd4 {[%clk 0:02:37]}  Bxd4 {[%clk 0:01:22]} 18. c3 {[%clk 0:02:38]}  bxc3 {[%clk 0:01:21]} 19. bxc3 {[%clk 0:02:39]}  Bc5 {[%clk 0:01:21]} 20. Bxa6 {[%clk 0:02:39]}  Nb6 {[%clk 0:01:17]} 21. a5 {[%clk 0:02:30]}  Nc4 {[%clk 0:01:14]} 22. Bxc4 {[%clk 0:02:21]}  dxc4 {[%clk 0:01:15]} 23. a6 {[%clk 0:02:19]}  Bd5 {[%clk 0:01:12]} 24. Be3 {[%clk 0:02:03]}  Kb8 {[%clk 0:01:08]} 25. Nd2 {[%clk 0:02:02]}  Bxe3 {[%clk 0:01:05]} 26. Qxe3 {[%clk 0:02:01]}  Ka8 {[%clk 0:01:01]} 27. Rg4 {[%clk 0:01:53]}  f5 {[%clk 0:00:53]} 28. Rd4 {[%clk 0:01:09]}  Qg5 {[%clk 0:00:49]} 29. Nxc4 {[%clk 0:01:04]}  Qxe3+ {[%clk 0:00:47]} 30. Nxe3 {[%clk 0:01:05]}  Be4 {[%clk 0:00:44]} 31. Rad1 {[%clk 0:01:01]}  Rc8 {[%clk 0:00:40]} 32. f3 {[%clk 0:00:57]}  Bc6 {[%clk 0:00:36]} 33. Rd6 {[%clk 0:00:56]}  Rge8 {[%clk 0:00:35]} 34. Rb1 {[%clk 0:00:43]}  Re7 {[%clk 0:00:34]} 35. Nc4 {[%clk 0:00:42]}  Ka7 {[%clk 0:00:33]} 36. Nb6 {[%clk 0:00:41]}  Rcc7 {[%clk 0:00:32]} 37. Kf2 {[%clk 0:00:34]}  Be8 {[%clk 0:00:32]} 38. Rb3 {[%clk 0:00:32]}  Bxh5 {[%clk 0:00:32]} 39. Rd8 {[%clk 0:00:24]}  Re8 {[%clk 0:00:28]} 40. Rd7 {[%clk 0:00:14]}  Rxd7 {[%clk 0:00:22]} 41. Nxd7 {[%clk 0:00:15]}  Rd8 {[%clk 0:00:20]} 42. Nc5 {[%clk 0:00:15]}  Be8 {[%clk 0:00:20]} 43. Nxe6 {[%clk 0:00:15]}  Rd2+ {[%clk 0:00:19]} 44. Kg1 {[%clk 0:00:09]}  Kxa6 {[%clk 0:00:19]} 45. Nc7+ {[%clk 0:00:09]}  Ka5 {[%clk 0:00:20]} 46. Nxe8 {[%clk 0:00:10]}  Rd1+ {[%clk 0:00:21]} 47. Kh2 {[%clk 0:00:10]}  Rb1 {[%clk 0:00:22]} 48. Rxb1 {[%clk 0:00:10]}  Ka4 {[%clk 0:00:22]} 49. Rb4+ {[%clk 0:00:10]}  Ka3 {[%clk 0:00:23]} 50. Nxg7 {[%clk 0:00:10]}  f4 {[%clk 0:00:23]} 51. Nf5 {[%clk 0:00:10]}  Ka2 {[%clk 0:00:23]} 52. Nxh6 {[%clk 0:00:11]}  Ka1 {[%clk 0:00:24]} 53. Ng8 {[%clk 0:00:11]}  Ka2 {[%clk 0:00:25]} 54. Nf6 {[%clk 0:00:11]}  Ka3 {[%clk 0:00:25]} 55. Nh5 {[%clk 0:00:12]}  Ka2 {[%clk 0:00:26]} 56. Nxf4 {[%clk 0:00:12]} 1-0


[Site "https://www.chess.com"]

[Event "Titled Tuesday Blitz February 28 Early 2023"]
[White "Manukyan, Sargis A."]
[Black "Zhukova, Natalia"]
[WhiteFideId "13303970"]
[BlackFideId "14101513"]
[WhiteElo "2187"]
[BlackElo "2297"]
[Result "1-0"]
[Round "04"]
[TimeControl "180+2"]
[Date "2023.02.28"]
[WhiteClock "0:00:20"]
[BlackClock "0:00:01"]

1. d4 {[%clk 0:03:00]}  Nf6 {[%clk 0:02:58]} 2. c4 {[%clk 0:03:01]}  e6 {[%clk 0:02:58]} 3. Nc3 {[%clk 0:03:01]}  d5 {[%clk 0:02:59]} 4. Nf3 {[%clk 0:03:00]}  c5 {[%clk 0:02:55]} 5. cxd5 {[%clk 0:03:00]}  Nxd5 {[%clk 0:02:56]} 6. e4 {[%clk 0:02:59]}  Nxc3 {[%clk 0:02:55]} 7. bxc3 {[%clk 0:03:00]}  cxd4 {[%clk 0:02:56]} 8. cxd4 {[%clk 0:03:01]}  Bb4+ {[%clk 0:02:56]} 9. Bd2 {[%clk 0:03:02]}  Bxd2+ {[%clk 0:02:57]} 10. Qxd2 {[%clk 0:03:03]}  O-O {[%clk 0:02:57]} 11. Bc4 {[%clk 0:03:04]}  Nc6 {[%clk 0:02:54]} 12. O-O {[%clk 0:03:04]}  b6 {[%clk 0:02:54]} 13. Rad1 {[%clk 0:02:50]}  Bb7 {[%clk 0:02:54]} 14. Rfe1 {[%clk 0:02:51]}  Rc8 {[%clk 0:02:52]} 15. Bb5 {[%clk 0:02:41]}  Na5 {[%clk 0:02:43]} 16. h3 {[%clk 0:02:36]}  Nc4 {[%clk 0:02:31]} 17. Qf4 {[%clk 0:02:30]}  a6 {[%clk 0:02:21]} 18. Bxc4 {[%clk 0:02:20]}  Rxc4 {[%clk 0:02:22]} 19. Qe3 {[%clk 0:02:10]}  Qc7 {[%clk 0:02:10]} 20. d5 {[%clk 0:01:53]}  Rd8 {[%clk 0:01:14]} 21. dxe6 {[%clk 0:01:42]}  fxe6 {[%clk 0:01:15]} 22. Ng5 {[%clk 0:01:38]}  Rxd1 {[%clk 0:00:59]} 23. Rxd1 {[%clk 0:01:38]}  Qe7 {[%clk 0:01:00]} 24. Qf4 {[%clk 0:01:26]}  h6 {[%clk 0:00:56]} 25. Nf3 {[%clk 0:00:42]}  Rxe4 {[%clk 0:00:54]} 26. Qb8+ {[%clk 0:00:41]}  Kh7 {[%clk 0:00:54]} 27. Rd8 {[%clk 0:00:39]}  Bd5 {[%clk 0:00:08]} 28. Ne5 {[%clk 0:00:23]}  Re1+ {[%clk 0:00:05]} 29. Kh2 {[%clk 0:00:23]}  Rxe5 {[%clk 0:00:03]} 30. Rh8+ {[%clk 0:00:23]}  Kg6 {[%clk 0:00:03]} 31. Qxe5 {[%clk 0:00:24]}  Qf6 {[%clk 0:00:03]} 32. Qg3+ {[%clk 0:00:24]}  Kf7 {[%clk 0:00:02]} 33. Rb8 {[%clk 0:00:23]}  g5 {[%clk 0:00:02]} 34. Rxb6 {[%clk 0:00:23]}  Kg6 {[%clk 0:00:03]} 35. Rxa6 {[%clk 0:00:23]}  Qb2 {[%clk 0:00:02]} 36. Qd3+ {[%clk 0:00:21]}  Kf6 {[%clk 0:00:01]} 37. Qxd5 {[%clk 0:00:20]} 1-0


[Site "https://www.chess.com"]

[Event "Titled Tuesday Blitz February 28 Early 2023"]
[White "Miszler, Levente"]
[Black "Kim, Sergey"]
[WhiteFideId "763276"]
[BlackFideId "13700570"]
[WhiteElo "2176"]
[BlackElo "2617"]
[Result "0-1"]
[Round "04"]
[TimeControl "180+2"]
[Date "2023.02.28"]
[WhiteClock "0:00:14"]
[BlackClock "0:00:25"]

1. Nf3 {[%clk 0:03:00]}  Nf6 {[%clk 0:02:58]} 2. c4 {[%clk 0:03:01]}  g6 {[%clk 0:02:58]} 3. g3 {[%clk 0:03:02]}  Bg7 {[%clk 0:02:58]} 4. Bg2 {[%clk 0:03:03]}  O-O {[%clk 0:02:58]} 5. O-O {[%clk 0:03:03]}  d6 {[%clk 0:02:58]} 6. Nc3 {[%clk 0:03:04]}  e5 {[%clk 0:02:58]} 7. d3 {[%clk 0:03:04]}  Nh5 {[%clk 0:02:57]} 8. Nd5 {[%clk 0:03:01]}  c6 {[%clk 0:02:56]} 9. Nc3 {[%clk 0:02:51]}  f5 {[%clk 0:02:55]} 10. Rb1 {[%clk 0:02:46]}  f4 {[%clk 0:02:54]} 11. b4 {[%clk 0:02:44]}  Nd7 {[%clk 0:02:46]} 12. b5 {[%clk 0:02:38]}  c5 {[%clk 0:02:46]} 13. a4 {[%clk 0:02:38]}  g5 {[%clk 0:02:43]} 14. Ne4 {[%clk 0:02:30]}  g4 {[%clk 0:02:38]} 15. Nxd6 {[%clk 0:02:30]}  gxf3 {[%clk 0:02:36]} 16. Bxf3 {[%clk 0:02:31]}  Ndf6 {[%clk 0:02:34]} 17. Nxb7 {[%clk 0:02:28]}  Bxb7 {[%clk 0:02:22]} 18. Bxb7 {[%clk 0:02:29]}  Rb8 {[%clk 0:02:22]} 19. Bf3 {[%clk 0:02:29]}  Qd7 {[%clk 0:02:20]} 20. e3 {[%clk 0:02:27]}  Qh3 {[%clk 0:02:17]} 21. exf4 {[%clk 0:02:18]}  exf4 {[%clk 0:02:14]} 22. d4 {[%clk 0:02:18]}  fxg3 {[%clk 0:01:58]} 23. fxg3 {[%clk 0:02:13]}  Ne4 {[%clk 0:01:39]} 24. Be3 {[%clk 0:02:02]}  Nc3 {[%clk 0:01:19]} 25. Qc2 {[%clk 0:01:30]}  Nxb1 {[%clk 0:01:18]} 26. Qxb1 {[%clk 0:01:31]}  cxd4 {[%clk 0:01:16]} 27. Bd5+ {[%clk 0:01:23]}  Kh8 {[%clk 0:01:15]} 28. Bf2 {[%clk 0:01:23]}  Qg4 {[%clk 0:01:10]} 29. c5 {[%clk 0:01:16]}  Nf4 {[%clk 0:01:09]} 30. Bg2 {[%clk 0:01:00]}  Nxg2 {[%clk 0:01:02]} 31. Kxg2 {[%clk 0:01:00]}  Qf3+ {[%clk 0:01:02]} 32. Kg1 {[%clk 0:01:00]}  d3 {[%clk 0:00:59]} 33. c6 {[%clk 0:01:00]}  d2 {[%clk 0:00:58]} 34. Qd1 {[%clk 0:00:49]}  Qd3 {[%clk 0:00:54]} 35. Qg4 {[%clk 0:00:39]}  Rbe8 {[%clk 0:00:48]} 36. c7 {[%clk 0:00:38]}  Rc8 {[%clk 0:00:27]} 37. Qd7 {[%clk 0:00:14]}  Qxd7 {[%clk 0:00:25]} 0-1


[Site "https://www.chess.com"]

[Event "Titled Tuesday Blitz February 28 Early 2023"]
[White "Itgelt, Khuyagtsogt"]
[Black "Toktomushev, Teimur"]
[WhiteFideId "4902912"]
[BlackFideId "14176726"]
[WhiteElo "2227"]
[BlackElo "2106"]
[Result "0-1"]
[Round "04"]
[TimeControl "180+2"]
[Date "2023.02.28"]
[WhiteClock "0:00:17"]
[BlackClock "0:00:07"]

1. c4 {[%clk 0:03:00]}  e6 {[%clk 0:03:00]} 2. Nf3 {[%clk 0:03:00]}  d5 {[%clk 0:03:00]} 3. d4 {[%clk 0:03:00]}  Nf6 {[%clk 0:03:00]} 4. g3 {[%clk 0:03:01]}  Bb4+ {[%clk 0:03:00]} 5. Bd2 {[%clk 0:03:00]}  Be7 {[%clk 0:03:01]} 6. Bg2 {[%clk 0:03:00]}  O-O {[%clk 0:03:01]} 7. Qc2 {[%clk 0:02:55]}  c6 {[%clk 0:02:56]} 8. O-O {[%clk 0:02:55]}  b6 {[%clk 0:02:56]} 9. Bf4 {[%clk 0:02:48]}  Ba6 {[%clk 0:02:55]} 10. b3 {[%clk 0:02:44]}  Nbd7 {[%clk 0:02:51]} 11. Nbd2 {[%clk 0:02:33]}  c5 {[%clk 0:02:03]} 12. Rfd1 {[%clk 0:02:28]}  Rc8 {[%clk 0:02:01]} 13. Qb2 {[%clk 0:02:25]}  cxd4 {[%clk 0:01:53]} 14. Qxd4 {[%clk 0:02:16]}  Bc5 {[%clk 0:01:51]} 15. Qb2 {[%clk 0:02:16]}  Qe7 {[%clk 0:01:43]} 16. a3 {[%clk 0:02:12]}  Ng4 {[%clk 0:01:27]} 17. e3 {[%clk 0:02:11]}  e5 {[%clk 0:01:26]} 18. Bg5 {[%clk 0:02:10]}  f6 {[%clk 0:01:26]} 19. b4 {[%clk 0:01:30]}  fxg5 {[%clk 0:01:20]} 20. bxc5 {[%clk 0:01:30]}  Nxc5 {[%clk 0:00:50]} 21. Ne1 {[%clk 0:00:56]}  Nxf2 {[%clk 0:00:44]} 22. Bxd5+ {[%clk 0:00:56]}  Kh8 {[%clk 0:00:44]} 23. Ndf3 {[%clk 0:00:54]}  Nxd1 {[%clk 0:00:41]} 24. Rxd1 {[%clk 0:00:55]}  e4 {[%clk 0:00:27]} 25. Ne5 {[%clk 0:00:54]}  Qf6 {[%clk 0:00:13]} 26. Ng2 {[%clk 0:00:45]}  Rce8 {[%clk 0:00:08]} 27. Nf7+ {[%clk 0:00:17]}  Rxf7 {[%clk 0:00:08]} 28. Qxf6 {[%clk 0:00:16]}  Rxf6 {[%clk 0:00:09]} 29. h4 {[%clk 0:00:16]}  gxh4 {[%clk 0:00:09]} 30. gxh4 {[%clk 0:00:17]}  Rd8 {[%clk 0:00:07]} 31. Nf4 {[%clk 0:00:17]}  Bxc4 {[%clk 0:00:07]} 0-1


[Site "https://www.chess.com"]

[Event "Titled Tuesday Blitz February 28 Early 2023"]
[White "Tan, Jun Ying"]
[Black "Jovic, Stanoje"]
[WhiteFideId "5710413"]
[BlackFideId "905020"]
[WhiteElo "2089"]
[BlackElo "2236"]
[Result "1-0"]
[Round "04"]
[TimeControl "180+2"]
[Date "2023.02.28"]
[WhiteClock "0:00:18"]
[BlackClock "0:00:12"]

1. d4 {[%clk 0:03:00]}  Nf6 {[%clk 0:02:59]} 2. c4 {[%clk 0:03:01]}  e6 {[%clk 0:03:00]} 3. Nc3 {[%clk 0:03:01]}  Bb4 {[%clk 0:03:00]} 4. e3 {[%clk 0:02:57]}  O-O {[%clk 0:02:59]} 5. Ne2 {[%clk 0:02:54]}  c5 {[%clk 0:02:59]} 6. a3 {[%clk 0:02:52]}  Bxc3+ {[%clk 0:02:58]} 7. Nxc3 {[%clk 0:02:52]}  cxd4 {[%clk 0:02:58]} 8. exd4 {[%clk 0:02:52]}  d5 {[%clk 0:02:58]} 9. Be3 {[%clk 0:02:52]}  b6 {[%clk 0:02:52]} 10. Be2 {[%clk 0:02:33]}  dxc4 {[%clk 0:02:45]} 11. Bxc4 {[%clk 0:02:33]}  Ba6 {[%clk 0:02:45]} 12. Bxa6 {[%clk 0:01:53]}  Nxa6 {[%clk 0:02:44]} 13. O-O {[%clk 0:01:47]}  Nc7 {[%clk 0:02:44]} 14. Bg5 {[%clk 0:01:42]}  h6 {[%clk 0:02:43]} 15. Bh4 {[%clk 0:01:42]}  Ncd5 {[%clk 0:02:41]} 16. Nxd5 {[%clk 0:01:42]}  Qxd5 {[%clk 0:02:41]} 17. Bxf6 {[%clk 0:01:41]}  gxf6 {[%clk 0:02:41]} 18. Qd2 {[%clk 0:01:40]}  Kg7 {[%clk 0:02:36]} 19. Rad1 {[%clk 0:01:39]}  Rac8 {[%clk 0:02:33]} 20. Rfe1 {[%clk 0:01:38]}  Rfd8 {[%clk 0:02:29]} 21. Re3 {[%clk 0:01:38]}  Rc4 {[%clk 0:02:04]} 22. Rg3+ {[%clk 0:01:31]}  Kf8 {[%clk 0:02:04]} 23. Qxh6+ {[%clk 0:01:30]}  Ke7 {[%clk 0:02:04]} 24. Rf3 {[%clk 0:01:12]}  Qg5 {[%clk 0:01:55]} 25. Qxg5 {[%clk 0:01:13]}  fxg5 {[%clk 0:01:55]} 26. Rfd3 {[%clk 0:01:14]}  Rc2 {[%clk 0:01:49]} 27. R3d2 {[%clk 0:01:01]}  Rxd2 {[%clk 0:01:47]} 28. Rxd2 {[%clk 0:01:02]}  e5 {[%clk 0:01:45]} 29. d5 {[%clk 0:01:02]}  Rc8 {[%clk 0:01:44]} 30. f3 {[%clk 0:01:00]}  Kd6 {[%clk 0:01:40]} 31. Kf2 {[%clk 0:00:57]}  f5 {[%clk 0:01:40]} 32. g3 {[%clk 0:00:56]}  Rc1 {[%clk 0:01:35]} 33. h4 {[%clk 0:00:47]}  gxh4 {[%clk 0:01:25]} 34. gxh4 {[%clk 0:00:48]}  a5 {[%clk 0:01:22]} 35. Kg2 {[%clk 0:00:43]}  a4 {[%clk 0:01:13]} 36. h5 {[%clk 0:00:39]}  Rc8 {[%clk 0:01:04]} 37. Kg3 {[%clk 0:00:38]}  Rg8+ {[%clk 0:00:59]} 38. Kh4 {[%clk 0:00:37]}  f4 {[%clk 0:00:58]} 39. h6 {[%clk 0:00:35]}  Rg6 {[%clk 0:00:52]} 40. Kh5 {[%clk 0:00:34]}  Rg3 {[%clk 0:00:52]} 41. Rh2 {[%clk 0:00:22]}  Rg8 {[%clk 0:00:21]} 42. h7 {[%clk 0:00:22]}  Rh8 {[%clk 0:00:21]} 43. Kg6 {[%clk 0:00:23]}  Kxd5 {[%clk 0:00:22]} 44. Re2 {[%clk 0:00:23]}  Ra8 {[%clk 0:00:19]} 45. Kg7 {[%clk 0:00:21]}  Ra7+ {[%clk 0:00:19]} 46. Kg6 {[%clk 0:00:21]}  Ra8 {[%clk 0:00:19]} 47. Kf6 {[%clk 0:00:22]}  Kd4 {[%clk 0:00:14]} 48. Rxe5 {[%clk 0:00:18]}  Rf8+ {[%clk 0:00:14]} 49. Kg7 {[%clk 0:00:18]}  Ra8 {[%clk 0:00:12]} 50. Re4+ {[%clk 0:00:18]} 1-0


[Site "https://www.chess.com"]

[Event "Titled Tuesday Blitz February 28 Early 2023"]
[White "Fiorito, Francisco"]
[Black "Levitan, Caleb Levi"]
[WhiteFideId "180165"]
[BlackFideId "14332620"]
[WhiteElo "2341"]
[BlackElo "1963"]
[Result "1-0"]
[Round "04"]
[TimeControl "180+2"]
[Date "2023.02.28"]
[WhiteClock "0:00:28"]
[BlackClock "0:00:17"]

1. d4 {[%clk 0:03:00]}  Nf6 {[%clk 0:02:57]} 2. Nc3 {[%clk 0:01:26]}  d5 {[%clk 0:02:44]} 3. Bf4 {[%clk 0:01:26]}  c5 {[%clk 0:02:34]} 4. e3 {[%clk 0:01:26]}  a6 {[%clk 0:02:30]} 5. dxc5 {[%clk 0:01:25]}  Nc6 {[%clk 0:02:25]} 6. Nf3 {[%clk 0:01:25]}  Bg4 {[%clk 0:02:20]} 7. h3 {[%clk 0:01:24]}  Bh5 {[%clk 0:02:14]} 8. Be2 {[%clk 0:01:24]}  e6 {[%clk 0:02:12]} 9. Na4 {[%clk 0:01:24]}  Ne4 {[%clk 0:01:52]} 10. c3 {[%clk 0:01:20]}  Nxc5 {[%clk 0:01:51]} 11. Nxc5 {[%clk 0:00:50]}  Bxc5 {[%clk 0:01:52]} 12. O-O {[%clk 0:00:50]}  O-O {[%clk 0:01:50]} 13. a4 {[%clk 0:00:49]}  Bd6 {[%clk 0:01:41]} 14. Bxd6 {[%clk 0:00:49]}  Qxd6 {[%clk 0:01:42]} 15. Qb3 {[%clk 0:00:48]}  Rab8 {[%clk 0:01:30]} 16. Rfd1 {[%clk 0:00:48]}  Rfc8 {[%clk 0:01:25]} 17. Qb6 {[%clk 0:00:47]}  Qc7 {[%clk 0:01:18]} 18. Qxc7 {[%clk 0:00:43]}  Rxc7 {[%clk 0:01:19]} 19. a5 {[%clk 0:00:44]}  Bxf3 {[%clk 0:01:02]} 20. Bxf3 {[%clk 0:00:43]}  Ne5 {[%clk 0:01:03]} 21. Be2 {[%clk 0:00:44]}  Nc4 {[%clk 0:01:01]} 22. Ra2 {[%clk 0:00:38]}  Rc5 {[%clk 0:00:58]} 23. Bxc4 {[%clk 0:00:34]}  Rxc4 {[%clk 0:00:57]} 24. Rd4 {[%clk 0:00:35]}  Rbc8 {[%clk 0:00:50]} 25. Ra3 {[%clk 0:00:35]}  R8c5 {[%clk 0:00:44]} 26. Rb3 {[%clk 0:00:35]}  Rb5 {[%clk 0:00:30]} 27. Rxb5 {[%clk 0:00:27]}  axb5 {[%clk 0:00:31]} 28. Kf1 {[%clk 0:00:28]}  Kf8 {[%clk 0:00:31]} 29. Ke2 {[%clk 0:00:28]}  Ke7 {[%clk 0:00:31]} 30. Kd3 {[%clk 0:00:29]}  Kd6 {[%clk 0:00:29]} 31. b4 {[%clk 0:00:29]}  e5 {[%clk 0:00:21]} 32. Rxc4 {[%clk 0:00:29]}  dxc4+ {[%clk 0:00:20]} 33. Ke4 {[%clk 0:00:28]}  Ke6 {[%clk 0:00:20]} 34. g4 {[%clk 0:00:29]}  g6 {[%clk 0:00:21]} 35. f4 {[%clk 0:00:30]}  f5+ {[%clk 0:00:21]} 36. gxf5+ {[%clk 0:00:31]}  gxf5+ {[%clk 0:00:22]} 37. Kf3 {[%clk 0:00:31]}  Kd5 {[%clk 0:00:21]} 38. h4 {[%clk 0:00:30]}  h5 {[%clk 0:00:20]} 39. Kg3 {[%clk 0:00:23]}  Ke4 {[%clk 0:00:17]} 40. fxe5 {[%clk 0:00:23]}  Kxe5 {[%clk 0:00:14]} 41. Kf3 {[%clk 0:00:24]}  Ke6 {[%clk 0:00:12]} 42. Kf4 {[%clk 0:00:18]}  Kf6 {[%clk 0:00:12]} 43. Kg3 {[%clk 0:00:16]}  Ke5 {[%clk 0:00:12]} 44. Kf3 {[%clk 0:00:17]}  Kd5 {[%clk 0:00:10]} 45. Kf4 {[%clk 0:00:17]}  Ke6 {[%clk 0:00:10]} 46. e4 {[%clk 0:00:17]}  fxe4 {[%clk 0:00:09]} 47. Kxe4 {[%clk 0:00:18]}  Kf6 {[%clk 0:00:09]} 48. Kd5 {[%clk 0:00:19]}  Kf5 {[%clk 0:00:09]} 49. Kc5 {[%clk 0:00:20]}  Kg4 {[%clk 0:00:10]} 50. Kb6 {[%clk 0:00:20]}  Kxh4 {[%clk 0:00:10]} 51. Kxb7 {[%clk 0:00:21]}  Kg3 {[%clk 0:00:11]} 52. a6 {[%clk 0:00:22]}  h4 {[%clk 0:00:11]} 53. a7 {[%clk 0:00:23]}  h3 {[%clk 0:00:12]} 54. a8=Q {[%clk 0:00:23]}  h2 {[%clk 0:00:13]} 55. Kb6 {[%clk 0:00:24]}  Kf2 {[%clk 0:00:13]} 56. Kxb5 {[%clk 0:00:24]}  Kg1 {[%clk 0:00:13]} 57. Kxc4 {[%clk 0:00:25]}  h1=Q {[%clk 0:00:13]} 58. Qxh1+ {[%clk 0:00:25]}  Kxh1 {[%clk 0:00:14]} 59. b5 {[%clk 0:00:26]}  Kg2 {[%clk 0:00:15]} 60. b6 {[%clk 0:00:27]}  Kf3 {[%clk 0:00:16]} 61. b7 {[%clk 0:00:28]}  Ke2 {[%clk 0:00:17]} 62. b8=Q {[%clk 0:00:29]}  Kd2 {[%clk 0:00:18]} 63. Qh2+ {[%clk 0:00:27]}  Kc1 {[%clk 0:00:19]} 64. Kb3 {[%clk 0:00:27]}  Kd1 {[%clk 0:00:19]} 65. Qf2 {[%clk 0:00:28]}  Kc1 {[%clk 0:00:17]} 66. Qc2# {[%clk 0:00:28]} 1-0


[Site "https://www.chess.com"]

[Event "Titled Tuesday Blitz February 28 Early 2023"]
[White "Babazada, Khazar"]
[Black "Filgueira, Hernan"]
[WhiteFideId "13413554"]
[BlackFideId "101770"]
[WhiteElo "2359"]
[BlackElo "2363"]
[Result "1-0"]
[Round "04"]
[TimeControl "180+2"]
[Date "2023.02.28"]
[WhiteClock "0:01:00"]
[BlackClock "0:00:19"]

1. e4 {[%clk 0:03:00]}  d6 {[%clk 0:02:57]} 2. d4 {[%clk 0:03:00]}  Nf6 {[%clk 0:02:57]} 3. Nc3 {[%clk 0:03:00]}  c6 {[%clk 0:02:58]} 4. Nf3 {[%clk 0:03:00]}  Bg4 {[%clk 0:02:57]} 5. h3 {[%clk 0:03:01]}  Bh5 {[%clk 0:02:57]} 6. Be2 {[%clk 0:03:01]}  e6 {[%clk 0:02:57]} 7. Be3 {[%clk 0:03:01]}  Be7 {[%clk 0:02:57]} 8. Qd2 {[%clk 0:03:01]}  d5 {[%clk 0:02:58]} 9. e5 {[%clk 0:03:01]}  Nfd7 {[%clk 0:02:57]} 10. g4 {[%clk 0:03:01]}  Bg6 {[%clk 0:02:57]} 11. h4 {[%clk 0:03:02]}  h5 {[%clk 0:02:38]} 12. gxh5 {[%clk 0:03:02]}  Bxh5 {[%clk 0:02:37]} 13. O-O-O {[%clk 0:03:02]}  c5 {[%clk 0:02:18]} 14. dxc5 {[%clk 0:02:59]}  Nc6 {[%clk 0:02:16]} 15. Nb5 {[%clk 0:02:55]}  Nxc5 {[%clk 0:02:12]} 16. Ng5 {[%clk 0:02:44]}  a6 {[%clk 0:01:58]} 17. Bxh5 {[%clk 0:02:38]}  Rxh5 {[%clk 0:01:56]} 18. Qe2 {[%clk 0:02:38]}  g6 {[%clk 0:01:52]} 19. Qf3 {[%clk 0:02:31]}  Nxe5 {[%clk 0:01:41]} 20. Qg3 {[%clk 0:02:25]}  axb5 {[%clk 0:01:37]} 21. Qxe5 {[%clk 0:01:46]}  Rxa2 {[%clk 0:01:25]} 22. Qg7 {[%clk 0:01:29]}  Ra1+ {[%clk 0:01:01]} 23. Kd2 {[%clk 0:01:27]}  Ne4+ {[%clk 0:00:58]} 24. Nxe4 {[%clk 0:01:25]}  dxe4+ {[%clk 0:00:54]} 25. Ke2 {[%clk 0:01:26]}  Rxd1 {[%clk 0:00:51]} 26. Rxd1 {[%clk 0:01:26]}  Qc7 {[%clk 0:00:49]} 27. Qg8+ {[%clk 0:01:20]}  Bf8 {[%clk 0:00:48]} 28. Bg5 {[%clk 0:01:16]}  Rxg5 {[%clk 0:00:36]} 29. hxg5 {[%clk 0:01:14]}  Qc4+ {[%clk 0:00:34]} 30. Kd2 {[%clk 0:01:07]}  Qd4+ {[%clk 0:00:30]} 31. Kc1 {[%clk 0:01:07]}  Qxf2 {[%clk 0:00:30]} 32. Qh8 {[%clk 0:01:06]}  Qf4+ {[%clk 0:00:27]} 33. Kb1 {[%clk 0:01:05]}  Qxg5 {[%clk 0:00:27]} 34. Qc3 {[%clk 0:01:04]}  Ke7 {[%clk 0:00:23]} 35. Qc7+ {[%clk 0:01:03]}  Kf6 {[%clk 0:00:23]} 36. Qd8+ {[%clk 0:00:59]}  Be7 {[%clk 0:00:21]} 37. Qh8+ {[%clk 0:01:00]}  Kf5 {[%clk 0:00:20]} 38. Rf1+ {[%clk 0:01:00]}  Kg4 {[%clk 0:00:19]} 39. Rg1+ {[%clk 0:01:00]} 1-0


[Site "https://www.chess.com"]